bitfinex-derivatives/quotes_BTCF0:USTF0_20250620
["timestamp","ask_amount","ask_price","bid_price","bid_amount"]
[1750401805317,1.01912909,104830.0,104820.0,0.57218274]
[1750401805516,1.01912909,104830.0,104820.0,0.58305399]
[1750401806015,1.02112909,104830.0,104820.0,0.58305399]
[1750401810019,1.02112909,104830.0,104820.0,0.33205785]
[1750401811514,0.97632909,104830.0,104820.0,0.58305399]
[1750401811813,0.97672909,104830.0,104820.0,0.58305399]
[1750401812714,0.31723755,104830.0,104820.0,0.95926604]
[1750401813013,0.56783369,104830.0,104820.0,0.95926604]
[1750401813421,0.56823369,104830.0,104820.0,0.95926604]
[1750401813722,0.56823369,104830.0,104820.0,0.59846604]
[1750401840332,0.49187454,104830.0,104820.0,0.59846604]
[1750401840925,0.2408784,104830.0,104820.0,0.84946218]
[1750401841134,0.2404784,104830.0,104820.0,0.84946218]
[1750401841332,0.49187454,104830.0,104820.0,0.84946218]
[1750401841638,0.56821983,104830.0,104820.0,0.84946218]
[1750401842033,0.31722369,104830.0,104820.0,0.84946218]
[1750401842838,0.56721983,104830.0,104820.0,0.84946218]
[1750401843039,0.56721983,104830.0,104820.0,0.98166218]
[1750401843239,0.56721983,104830.0,104820.0,0.73066604]
[1750401843429,0.56721983,104830.0,104820.0,0.71525399]
[1750401844040,0.56721983,104830.0,104820.0,0.73103366]
[1750401844940,0.31622369,104830.0,104820.0,0.59883366]
[1750401845140,0.56681983,104830.0,104820.0,0.59883366]
[1750401845440,0.56721983,104830.0,104820.0,0.59883366]
[1750401846842,0.56721983,104830.0,104820.0,0.59880652]
[1750401848343,0.31622369,104830.0,104820.0,0.59880652]
[1750401848546,0.56721983,104830.0,104820.0,0.59880652]
[1750401849839,0.0014,104830.0,104820.0,1.21060266]
[1750401850034,0.001,104830.0,104820.0,1.21060266]
[1750401850230,0.1917684,104830.0,104820.0,1.21060266]
[1750401850431,0.1921684,104830.0,104820.0,1.21060266]
[1750401850835,0.1921684,104830.0,104820.0,0.70861038]
[1750401851039,0.50039618,104830.0,104820.0,1.53564652]
[1750401852038,0.50039618,104830.0,104820.0,1.66772652]
[1750401852745,0.24940004,104830.0,104820.0,1.91872266]
[1750401853042,0.50039618,104830.0,104820.0,1.66772652]
[1750401853742,0.50039618,104830.0,104820.0,1.91872266]
[1750401856044,0.50039618,104830.0,104820.0,1.21060266]
[1750401856247,0.50039618,104830.0,104820.0,1.91868266]
[1750401857938,0.44316454,104830.0,104820.0,1.91868266]
[1750401860746,0.44316454,104830.0,104820.0,1.66768652]
[1750401861443,0.44316454,104830.0,104820.0,1.91868266]
[1750401861943,0.44316454,104830.0,104820.0,1.41669038]
[1750401862142,0.44316454,104830.0,104820.0,1.66768652]
[1750401862342,0.46589557,104830.0,104820.0,1.66768652]
[1750401862946,0.21489943,104830.0,104820.0,1.91868266]
[1750401863248,0.02373103,104830.0,104820.0,1.91868266]
[1750401863552,0.21489943,104830.0,104820.0,1.91868266]
[1750401864548,0.27209148,104830.0,104820.0,1.91868266]
[1750401866149,0.21489943,104830.0,104820.0,1.91868266]
[1750401868653,0.46589557,104830.0,104820.0,1.91868266]
[1750401869652,0.46589557,104830.0,104820.0,1.41669038]
[1750401869851,0.46589557,104830.0,104820.0,1.91868266]
[1750401871759,0.46589557,104830.0,104820.0,1.66768652]
[1750401871959,0.46589557,104830.0,104820.0,0.95960652]
[1750401872156,0.46589557,104830.0,104820.0,1.66760652]
[1750401874366,0.46589557,104830.0,104820.0,1.91860266]
[1750401877871,0.46589557,104830.0,104820.0,1.66760652]
[1750401878872,0.46589557,104830.0,104820.0,0.95960652]
[1750401879075,0.46589557,104830.0,104820.0,0.69773913]
[1750401879265,0.50739557,104830.0,104820.0,1.65665527]
[1750401879973,0.25639943,104830.0,104820.0,1.65665527]
[1750401880172,0.50739557,104830.0,104820.0,1.65665527]
[1750401881373,0.50739557,104830.0,104820.0,0.94873527]
[1750401881574,0.50739557,104830.0,104820.0,1.65665527]
[1750401882174,0.50739557,104830.0,104820.0,0.94873527]
[1750401882380,0.50739557,104830.0,104820.0,1.65665527]
[1750401883373,0.58374086,104830.0,104820.0,1.65665527]
[1750401889381,0.54224086,104830.0,104820.0,1.65665527]
[1750401890773,0.29124472,104830.0,104820.0,1.65665527]
[1750401890970,0.54224086,104830.0,104820.0,1.65665527]
[1750401894583,0.46589557,104830.0,104820.0,1.65665527]
[1750401899786,0.82669557,104830.0,104820.0,1.29585527]
[1750401899987,0.90304086,104830.0,104820.0,1.29585527]
[1750401900187,0.90304086,104830.0,104820.0,1.16381527]
[1750401901088,0.90304086,104830.0,104820.0,0.58793527]
[1750401901289,0.90304086,104830.0,104820.0,1.16381527]
[1750401901588,0.90304086,104830.0,104820.0,0.58793527]
[1750401901788,0.90304086,104830.0,104820.0,1.16377527]
[1750401902777,1.1548096,104830.0,104820.0,0.1304]
[1750401902992,1.27255489,104830.0,104820.0,0.0855]
[1750401903287,1.10495875,104830.0,104820.0,0.0448]
[1750401903479,0.1907865,104820.0,104810.0,0.78918]
[1750401903683,0.71550981,104820.0,104810.0,0.3126047]
[1750401904086,0.79184505,104820.0,104810.0,0.8884447]
[1750401904287,0.1908048,104810.0,104800.0,1.07775884]
[1750401904490,0.52177004,104810.0,104800.0,1.77539884]
[1750401904692,0.52177004,104810.0,104800.0,1.19955884]
[1750401904987,0.52177004,104810.0,104800.0,1.7857191]
[1750401905194,0.52177004,104810.0,104800.0,1.7857591]
[1750401905694,0.52177004,104810.0,104800.0,1.7887591]
[1750401905885,0.52177004,104810.0,104800.0,1.7907591]
[1750401906382,0.52177004,104810.0,104800.0,1.2148791]
[1750401906893,0.52177004,104810.0,104800.0,1.7907191]
[1750401907087,0.2707739,104810.0,104800.0,1.7907191]
[1750401907281,0.52177004,104810.0,104800.0,0.68872866]
[1750401907487,0.52177004,104810.0,104800.0,0.7109248]
[1750401907786,0.52177004,104810.0,104800.0,1.2867648]
[1750401908287,0.52177004,104810.0,104800.0,0.7109248]
[1750401908486,0.52177004,104810.0,104800.0,1.2868048]
[1750401908686,0.52177004,104810.0,104800.0,1.2858048]
[1750401908887,0.52177004,104810.0,104800.0,1.2838048]
[1750401910191,0.52177004,104810.0,104800.0,1.27348454]
[1750401911192,0.52177004,104810.0,104800.0,0.56560454]
[1750401911393,0.52177004,104810.0,104800.0,0.8904884]
[1750401911594,0.52177004,104810.0,104800.0,1.14148454]
[1750401911792,0.52177004,104810.0,104800.0,0.56560454]
[1750401911992,0.52177004,104810.0,104800.0,1.14148454]
[1750401912292,0.52177004,104810.0,104800.0,0.56560454]
[1750401912494,0.52177004,104810.0,104800.0,1.14148454]
[1750401913090,0.46453197,104810.0,104800.0,1.14148454]
[1750401913788,0.46453197,104810.0,104800.0,0.95067614]
[1750401913994,0.82533197,104810.0,104800.0,0.95067614]
[1750401914192,0.82533197,104810.0,104800.0,0.69968]
[1750401914886,0.82533197,104810.0,104800.0,0.1238]
[1750401915483,0.94596721,104810.0,104800.0,0.1238]
[1750401916504,0.94596721,104810.0,104800.0,0.1228]
[1750401916791,0.86963197,104810.0,104800.0,0.1228]
[1750401917096,0.87063197,104810.0,104800.0,0.1218]
[1750401917889,0.61963583,104810.0,104800.0,0.1218]
[1750401918097,0.87063197,104810.0,104800.0,0.1218]
[1750401918897,0.1908231,104800.0,104790.0,0.2776389]
[1750401919097,1.17446893,104800.0,104790.0,0.131]
[1750401920002,1.17446893,104800.0,104790.0,0.132]
[1750401921209,1.17446893,104800.0,104790.0,0.133]
[1750401923692,1.17446893,104800.0,104790.0,0.0898]
[1750401923902,1.21656893,104800.0,104790.0,0.0898]
[1750401924194,1.17446893,104800.0,104790.0,0.0898]
[1750401925202,1.1517379,104800.0,104790.0,0.133]
[1750401925698,1.7287379,104800.0,104790.0,0.133]
[1750401926099,1.67161538,104800.0,104790.0,0.133]
[1750401926597,1.7287157,104800.0,104790.0,0.133]
[1750401927197,1.75199984,104800.0,104790.0,0.133]
[1750401927705,1.7287157,104800.0,104790.0,0.133]
[1750401928906,1.67161538,104800.0,104790.0,0.133]
[1750401929404,1.69490688,104800.0,104790.0,0.133]
[1750401929604,1.65390688,104800.0,104790.0,0.3238414]
[1750401930905,1.71102985,104800.0,104790.0,0.133]
[1750401931205,1.71102985,104800.0,104790.0,0.3238414]
[1750401932005,1.65390688,104800.0,104790.0,0.3238414]
[1750401933109,1.65390688,104800.0,104790.0,0.133]
[1750401934205,1.44584312,104800.0,104790.0,0.133]
[1750401934404,1.63666622,104800.0,104790.0,0.133]
[1750401934703,1.71283344,104800.0,104790.0,0.133]
[1750401935105,1.13583344,104800.0,104790.0,0.133]
[1750401935297,1.71251344,104800.0,104790.0,0.133]
[1750401935696,1.71291344,104800.0,104790.0,0.133]
[1750401937600,1.63674622,104800.0,104790.0,0.133]
[1750401939998,1.06006622,104800.0,104790.0,0.133]
[1750401940298,1.63662622,104800.0,104790.0,0.133]
[1750401942907,1.71279344,104800.0,104790.0,0.133]
[1750401946409,1.22804182,104800.0,104790.0,0.133]
[1750401946605,1.7300341,104800.0,104790.0,0.133]
[1750401947101,1.73008163,104800.0,104790.0,0.133]
[1750401948010,1.73008163,104800.0,104790.0,0.0462]
[1750401948209,1.76558163,104800.0,104790.0,0.0462]
[1750401948410,1.76558163,104800.0,104790.0,0.06177855]
[1750401948907,1.76558163,104800.0,104790.0,0.0462]
[1750401951107,1.34070724,104800.0,104790.0,0.0462]
[1750401951306,1.87929952,104800.0,104790.0,0.0462]
[1750401952214,1.90479952,104800.0,104790.0,0.0462]
[1750401955313,1.90479952,104800.0,104790.0,0.002]
[1750401955508,0.1908413,104790.0,104780.0,0.075]
[1750401955705,0.86137647,104790.0,104780.0,0.075]
[1750401956014,1.11237261,104790.0,104780.0,0.075]
[1750401956704,1.11237261,104790.0,104780.0,0.078]
[1750401956906,1.11237261,104790.0,104780.0,0.08]
[1750401957112,1.11237261,104790.0,104780.0,0.1173]
[1750401957314,0.86137647,104790.0,104780.0,0.1173]
[1750401957813,0.93863417,104790.0,104780.0,0.1173]
[1750401958313,0.86137647,104790.0,104780.0,0.1173]
[1750401959504,0.86137647,104790.0,104760.0,0.37117582]
[1750401959505,0.9986492,104790.0,104760.0,0.37117582]
[1750401959712,0.49910178,104770.0,104760.0,0.23906782]
[1750401959914,0.52244081,104770.0,104760.0,0.49006396]
[1750401960309,0.52244081,104770.0,104760.0,0.47968814]
[1750401960508,0.52244081,104770.0,104760.0,0.0378]
[1750401960709,0.52244081,104770.0,104760.0,0.2286959]
[1750401960916,0.46521297,104770.0,104760.0,0.3021959]
[1750401961306,0.46521297,104770.0,104760.0,0.1113]
[1750401961507,0.46521297,104770.0,104760.0,0.1153]
[1750401961911,0.82601297,104770.0,104760.0,0.1153]
[1750401962312,0.82601297,104770.0,104760.0,0.1123]
[1750401962814,0.82701297,104770.0,104760.0,0.1113]
[1750401964318,0.82701297,104770.0,104760.0,0.302196]
[1750401964904,0.82701297,104770.0,104760.0,0.56910987]
[1750401965109,0.88417816,104770.0,104760.0,0.56910987]
[1750401967004,0.52337816,104770.0,104760.0,0.56910987]
[1750401967915,0.27238202,104770.0,104760.0,0.56910987]
[1750401968114,0.52337816,104770.0,104760.0,0.56910987]
[1750401968316,0.52377816,104770.0,104760.0,0.56910987]
[1750401969621,0.52337816,104770.0,104760.0,0.56910987]
[1750401969822,0.52377816,104770.0,104760.0,0.56910987]
[1750401970319,0.52377816,104770.0,104760.0,0.31811373]
[1750401970525,0.52377816,104770.0,104760.0,0.56910987]
[1750401974628,0.52377816,104770.0,104760.0,0.31811373]
[1750401974830,0.52377816,104770.0,104760.0,0.56910987]
[1750401975135,0.52377816,104770.0,104760.0,0.31811373]
[1750401975835,0.52377816,104770.0,104760.0,0.56910987]
[1750401976222,0.50043913,104770.0,104760.0,0.56910987]
[1750401976428,0.50043913,104770.0,104760.0,0.31811373]
[1750401981141,0.86123913,104770.0,104760.0,0.31811353]
[1750401982736,0.80407394,104770.0,104760.0,0.31811353]
[1750401983942,0.80407394,104770.0,104760.0,0.12721773]
[1750401985541,0.84107394,104770.0,104760.0,0.12721773]
[1750401986545,0.84107394,104770.0,104760.0,0.31811383]
[1750401987447,0.5900778,104770.0,104760.0,0.31811383]
[1750401987642,0.84107394,104770.0,104760.0,0.31811383]
[1750401988955,0.5530778,104770.0,104760.0,0.31811383]
[1750401989246,0.80407394,104770.0,104760.0,0.31811383]
[1750401989445,0.44327394,104770.0,104760.0,0.56910997]
[1750401990248,0.44287394,104770.0,104760.0,0.56910997]
[1750401990439,0.44327394,104770.0,104760.0,0.56910997]
[1750401990639,0.44287394,104770.0,104760.0,0.56910997]
[1750401990935,0.44327394,104770.0,104760.0,0.56910997]
[1750401991538,0.44287394,104770.0,104760.0,0.56910997]
[1750401991732,0.44327394,104770.0,104760.0,0.56910997]
[1750401999049,0.1922778,104770.0,104760.0,0.56910997]
[1750401999247,0.44327394,104770.0,104760.0,0.56910997]
[1750402004553,0.44327394,104770.0,104760.0,0.55319224]
[1750402004755,0.44327394,104770.0,104760.0,0.3021961]
[1750402005050,0.44327394,104770.0,104760.0,0.55319224]
[1750402006751,0.44327394,104770.0,104760.0,0.3021961]
[1750402006950,0.44327394,104770.0,104760.0,0.55319224]
[1750402008463,0.46602168,104770.0,104760.0,0.55319224]
[1750402014561,0.54239597,104770.0,104760.0,0.55319224]
[1750402015163,0.46602168,104770.0,104760.0,0.55319224]
[1750402016268,0.54239597,104770.0,104760.0,0.55319224]
[1750402020464,0.54239597,104770.0,104760.0,0.3021961]
[1750402020764,0.54239597,104770.0,104760.0,0.55319224]
[1750402021068,0.46602168,104770.0,104760.0,0.55319224]
[1750402022868,0.54239597,104770.0,104760.0,0.55319224]
[1750402023271,0.46602168,104770.0,104760.0,0.55319224]
[1750402023969,0.54239597,104770.0,104760.0,0.55319224]
[1750402024563,0.46602168,104770.0,104760.0,0.55319224]
[1750402030375,0.46602168,104770.0,104760.0,0.55519224]
[1750402030977,0.46502168,104770.0,104760.0,0.55619224]
[1750402031173,0.02314774,104770.0,104760.0,1.16798838]
[1750402031480,0.08043454,104770.0,104760.0,1.16798838]
[1750402031667,0.08003454,104770.0,104760.0,1.16798838]
[1750402032479,0.08043454,104770.0,104760.0,1.16798838]
[1750402033178,0.27131214,104770.0,104760.0,1.16798838]
[1750402033571,0.27091214,104770.0,104760.0,1.16798838]
[1750402033872,0.52230828,104770.0,104760.0,1.16798838]
[1750402034082,0.27131214,104770.0,104760.0,1.16798838]
[1750402034680,0.27131214,104770.0,104760.0,0.6659961]
[1750402034879,0.27131214,104770.0,104760.0,1.87778838]
[1750402035178,0.52230828,104770.0,104760.0,1.87778838]
[1750402035384,0.52230828,104770.0,104760.0,1.3757961]
[1750402035571,0.52230828,104770.0,104760.0,1.87778838]
[1750402036774,0.52230828,104770.0,104760.0,2.23858838]
[1750402037674,0.27131214,104770.0,104760.0,2.23858838]
[1750402037874,0.52230828,104770.0,104760.0,2.23858838]
[1750402038583,0.27131214,104770.0,104760.0,2.23858838]
[1750402040282,0.27131214,104770.0,104760.0,1.7365961]
[1750402040471,0.27131214,104770.0,104760.0,2.23854838]
[1750402040675,0.52230828,104770.0,104760.0,2.23854838]
[1750402041084,0.33143068,104770.0,104760.0,2.04765228]
[1750402041281,0.27414388,104770.0,104760.0,2.04765228]
[1750402042585,0.02314774,104770.0,104760.0,2.04765228]
[1750402043884,0.27414388,104770.0,104760.0,2.04765228]
[1750402044685,0.02314774,104770.0,104760.0,2.04765228]
[1750402045890,0.0004,104770.0,104760.0,2.04765228]
[1750402046190,0.02311739,104770.0,104760.0,2.04765228]
[1750402047590,0.25099614,104780.0,104770.0,0.25099614]
[1750402047892,0.25099614,104780.0,104770.0,0.71739614]
[1750402049591,0.05491773,104780.0,104770.0,0.35659614]
[1750402049795,0.05591773,104780.0,104770.0,0.71739614]
[1750402051589,0.05591773,104780.0,104770.0,0.4664]
[1750402051889,0.05591773,104780.0,104770.0,0.71739614]
[1750402053993,0.001,104780.0,104770.0,0.71739614]
[1750402055189,0.001,104780.0,104770.0,0.90827104]
[1750402055495,0.001,104780.0,104770.0,1.15926718]
[1750402055883,0.0014,104780.0,104770.0,1.15926718]
[1750402056589,0.001,104780.0,104770.0,1.16126718]
[1750402056788,0.190839,104790.0,104780.0,0.1908576]
[1750402057092,0.190839,104790.0,104780.0,1.86472988]
[1750402057990,0.190839,104790.0,104780.0,1.86772988]
[1750402058994,0.190839,104790.0,104780.0,1.87072988]
[1750402059890,0.191239,104790.0,104780.0,1.87072988]
[1750402061401,0.191239,104790.0,104780.0,1.94646668]
[1750402062491,0.0004,104790.0,104780.0,1.94646668]
[1750402062694,0.1912395,104790.0,104780.0,1.94646668]
[1750402065193,0.0004,104790.0,104780.0,1.94646668]
[1750402066702,0.1912396,104790.0,104780.0,1.94646668]
[1750402067400,0.2484325,104790.0,104780.0,1.94646668]
[1750402071311,0.0575929,104790.0,104780.0,1.94646668]
[1750402072597,0.0571929,104790.0,104780.0,1.94646668]
[1750402073105,0.0575929,104790.0,104780.0,1.94646668]
[1750402077812,0.38773743,104800.0,104790.0,0.1908406]
[1750402078112,0.57857383,104800.0,104790.0,0.90903674]
[1750402079204,0.32757769,104800.0,104790.0,0.91103674]
[1750402079405,0.57857383,104800.0,104790.0,0.91103674]
[1750402079807,0.57857383,104800.0,104790.0,0.91203674]
[1750402080415,0.32757769,104800.0,104790.0,0.91203674]
[1750402080917,0.1488521,104800.0,104790.0,0.91203674]
[1750402081116,0.2442681,104800.0,104790.0,0.91203674]
[1750402081305,0.2919763,104800.0,104790.0,0.91203674]
[1750402081510,0.2442681,104800.0,104790.0,0.91203674]
[1750402082721,0.19656,104800.0,104790.0,0.91203674]
[1750402083116,0.19656,104800.0,104790.0,0.92216664]
[1750402084917,0.1488521,104800.0,104790.0,0.92216664]
[1750402088119,0.1488521,104800.0,104790.0,0.56136664]
[1750402088323,0.1488521,104800.0,104790.0,0.92216664]
[1750402089621,0.39984824,104800.0,104790.0,0.92216664]
[1750402091728,0.39984824,104800.0,104790.0,1.49896664]
[1750402094136,0.39984824,104800.0,104790.0,1.2479705]
[1750402094437,0.39984824,104800.0,104790.0,1.49888664]
[1750402098436,0.39984824,104800.0,104790.0,0.4342]
[1750402098631,1.08801867,104800.0,104790.0,0.0382]
[1750402098827,1.17011867,104800.0,104790.0,0.0382]
[1750402099837,1.17011867,104800.0,104790.0,0.28919614]
[1750402100037,1.17011867,104800.0,104790.0,0.0372]
[1750402100241,1.17311867,104800.0,104790.0,0.0372]
[1750402101036,1.17411867,104800.0,104790.0,0.0352]
[1750402102242,1.17411867,104800.0,104790.0,0.2260406]
[1750402103242,1.17411867,104800.0,104790.0,0.0352]
[1750402103437,1.17411867,104800.0,104790.0,0.28619614]
[1750402103641,1.17411867,104800.0,104790.0,0.2260406]
[1750402104541,0.92312253,104800.0,104790.0,0.2592406]
[1750402104845,1.17411867,104800.0,104790.0,0.51023674]
[1750402105031,1.15721867,104800.0,104790.0,0.51023674]
[1750402105946,1.12631867,104800.0,104790.0,0.51023674]
[1750402106645,0.87532253,104800.0,104790.0,0.51023674]
[1750402106840,1.12631867,104800.0,104790.0,0.54493674]
[1750402107148,0.87532253,104800.0,104790.0,0.54493674]
[1750402107841,1.12631867,104800.0,104790.0,0.54493674]
[1750402108042,0.87532253,104800.0,104790.0,0.54493674]
[1750402108241,1.12631867,104800.0,104790.0,0.54493674]
[1750402108437,0.87532253,104800.0,104790.0,0.54493674]
[1750402108847,1.12631867,104800.0,104790.0,0.54493674]
[1750402109250,1.12631867,104800.0,104790.0,0.0352]
[1750402109548,1.17411867,104800.0,104790.0,0.0352]
[1750402110045,1.17411867,104800.0,104790.0,0.07]
[1750402113144,1.15721867,104800.0,104790.0,0.1039]
[1750402113647,1.15721867,104800.0,104790.0,0.35489614]
[1750402113852,1.15721867,104800.0,104790.0,0.54573674]
[1750402114452,1.12631867,104800.0,104790.0,0.54573674]
[1750402116957,1.12631867,104800.0,104790.0,0.35489614]
[1750402117457,1.12631867,104800.0,104790.0,0.54573684]
[1750402120860,1.09201867,104800.0,104790.0,0.54573684]
[1750402122857,1.09201867,104800.0,104790.0,0.35489614]
[1750402123060,1.09201867,104800.0,104790.0,0.1039]
[1750402123764,1.09201867,104800.0,104790.0,0.35489614]
[1750402124661,1.09201867,104800.0,104790.0,0.1039]
[1750402125052,1.12661867,104800.0,104790.0,0.1039]
[1750402125255,1.05024438,104800.0,104790.0,0.1039]
[1750402125559,1.70309867,104800.0,104790.0,0.07]
[1750402126153,1.20110639,104800.0,104790.0,0.07]
[1750402126461,1.70309867,104800.0,104790.0,0.07]
[1750402128568,1.72577192,104800.0,104790.0,0.07]
[1750402130652,1.18917964,104800.0,104790.0,0.32099614]
[1750402130857,1.44105578,104800.0,104790.0,0.35489614]
[1750402131060,1.44105578,104800.0,104790.0,0.54573714]
[1750402132765,1.44105578,104800.0,104790.0,0.294741]
[1750402132960,1.69205192,104800.0,104790.0,0.54573714]
[1750402135669,1.69205192,104800.0,104790.0,0.35489614]
[1750402138067,1.72863374,104800.0,104790.0,0.35489614]
[1750402138574,1.70596049,104800.0,104790.0,0.35489614]
[1750402139076,1.63098868,104800.0,104790.0,0.35489614]
[1750402139673,1.65385703,104800.0,104790.0,0.35489614]
[1750402140975,1.63098868,104800.0,104790.0,0.35489614]
[1750402141275,1.65385702,104800.0,104790.0,0.35489614]
[1750402143376,1.65385702,104800.0,104790.0,0.1039]
[1750402144477,1.65385702,104800.0,104790.0,0.35489614]
[1750402144971,1.65385702,104800.0,104790.0,0.1039]
[1750402145171,1.65385702,104800.0,104790.0,0.35489614]
[1750402145872,1.65385702,104800.0,104790.0,0.54573724]
[1750402146680,0.82550088,104800.0,104790.0,0.54573724]
[1750402146882,1.40242088,104800.0,104790.0,0.54573724]
[1750402147483,1.65381702,104800.0,104790.0,0.54573724]
[1750402148082,1.73018438,104800.0,104790.0,0.54573724]
[1750402148683,1.2281921,104800.0,104790.0,0.54573724]
[1750402148885,1.73018438,104800.0,104790.0,0.54573724]
[1750402149185,1.73018573,104800.0,104790.0,0.54573724]
[1750402152885,1.47918959,104800.0,104790.0,0.54573724]
[1750402153486,1.73018573,104800.0,104790.0,0.54573724]
[1750402154888,1.40282223,104800.0,104790.0,0.54573724]
[1750402156087,1.65381837,104800.0,104790.0,0.54573724]
[1750402156889,1.65381837,104800.0,104790.0,0.35489614]
[1750402157590,1.65381837,104800.0,104790.0,0.1039]
[1750402158594,1.76407619,104800.0,104790.0,0.1039]
[1750402166301,1.76407619,104800.0,104790.0,0.07]
[1750402166504,1.78887619,104800.0,104790.0,0.07]
[1750402167806,1.76407619,104800.0,104790.0,0.07]
[1750402168197,1.26208391,104800.0,104790.0,0.07]
[1750402168396,1.76407619,104800.0,104790.0,0.07]
[1750402170214,1.15325619,104800.0,104790.0,0.07]
[1750402170414,0.90226005,104800.0,104790.0,0.1034]
[1750402170603,1.47902005,104800.0,104790.0,0.1034]
[1750402171017,1.73001619,104800.0,104790.0,0.1034]
[1750402171408,1.73001619,104800.0,104790.0,0.35439614]
[1750402172116,1.65365837,104800.0,104790.0,0.35439614]
[1750402172415,1.72999012,104800.0,104790.0,0.35439614]
[1750402173815,1.72999012,104800.0,104790.0,0.1034]
[1750402176717,1.76359012,104800.0,104790.0,0.1034]
[1750402184223,1.68725837,104800.0,104790.0,0.1034]
[1750402185223,1.76358228,104800.0,104790.0,0.1034]
[1750402187323,1.72998228,104800.0,104790.0,0.1034]
[1750402189928,1.65365837,104800.0,104790.0,0.1034]
[1750402193930,1.15166609,104800.0,104790.0,0.1034]
[1750402194132,1.65365837,104800.0,104790.0,0.1034]
[1750402197434,1.74912624,104800.0,104790.0,0.1034]
[1750402205239,1.65365837,104800.0,104790.0,0.1034]
[1750402205848,1.73077626,104800.0,104790.0,0.1034]
[1750402206645,1.73077626,104800.0,104790.0,0.07]
[1750402206840,1.76457626,104800.0,104790.0,0.07]
[1750402207342,0.190841,104790.0,104780.0,0.0313]
[1750402207642,0.1908592,104780.0,104770.0,0.0331]
[1750402207942,1.07652117,104780.0,104770.0,0.0666]
[1750402208146,1.07652117,104780.0,104770.0,0.2574774]
[1750402208931,0.82552503,104780.0,104770.0,0.2574774]
[1750402209134,0.90253305,104780.0,104770.0,0.2574774]
[1750402209333,1.15352919,104780.0,104770.0,0.2574774]
[1750402209543,1.07652117,104780.0,104770.0,0.2574774]
[1750402210051,0.82552503,104780.0,104770.0,0.50847354]
[1750402210245,1.07652117,104780.0,104770.0,0.2594774]
[1750402210444,1.07652117,104780.0,104770.0,0.2947774]
[1750402210644,0.82552503,104780.0,104770.0,0.2947774]
[1750402211445,0.82552503,104780.0,104770.0,0.54577354]
[1750402214542,0.9015629,104780.0,104770.0,0.54577354]
[1750402215637,0.5407629,104780.0,104770.0,0.54577354]
[1750402216230,0.59797042,104780.0,104770.0,0.54577354]
[1750402216435,0.59837042,104780.0,104770.0,0.54577354]
[1750402217847,0.5411629,104780.0,104770.0,0.54577354]
[1750402218037,0.59837081,104780.0,104770.0,0.54577354]
[1750402218548,0.5411629,104780.0,104770.0,0.54577354]
[1750402218746,0.5411629,104780.0,104770.0,0.2947774]
[1750402219045,0.5411629,104780.0,104770.0,0.54577354]
[1750402220644,0.9019629,104780.0,104770.0,0.54577354]
[1750402221849,0.9019629,104780.0,104770.0,0.2947774]
[1750402222039,0.5411629,104780.0,104770.0,0.54577354]
[1750402222349,0.91183827,104780.0,104770.0,0.54577354]
[1750402222846,0.55103827,104780.0,104770.0,0.54577354]
[1750402223143,0.91183827,104780.0,104770.0,0.54577354]
[1750402223847,0.29016676,104780.0,104770.0,0.54577354]
[1750402224047,0.5411629,104780.0,104770.0,0.54577354]
[1750402224434,0.9019629,104780.0,104770.0,0.54577354]
[1750402224637,0.5411629,104780.0,104770.0,0.54577354]
[1750402224834,0.9019629,104780.0,104770.0,0.54577354]
[1750402228150,0.9019629,104780.0,104770.0,0.35489614]
[1750402228649,1.15295904,104780.0,104770.0,0.35489614]
[1750402229046,0.9019629,104780.0,104770.0,0.35489614]
[1750402229247,1.15295904,104780.0,104770.0,0.35489614]
[1750402229445,1.22930892,104780.0,104770.0,0.35489614]
[1750402230937,1.2393889,104780.0,104770.0,0.35489614]
[1750402232751,0.98839276,104780.0,104770.0,0.35489614]
[1750402232952,1.2393889,104780.0,104770.0,0.35489614]
[1750402233153,1.03913228,104780.0,104770.0,0.1039]
[1750402233349,1.22999148,104780.0,104770.0,0.1039]
[1750402233549,1.22999148,104780.0,104770.0,0.35489614]
[1750402233747,0.97899534,104780.0,104770.0,0.35489614]
[1750402234256,1.1536416,104780.0,104770.0,0.35489614]
[1750402234957,0.90264546,104780.0,104770.0,0.35489614]
[1750402235155,1.1536416,104780.0,104770.0,0.1039]
[1750402235659,0.90264546,104780.0,104770.0,0.1039]
[1750402235858,0.90264546,104780.0,104770.0,0.35489614]
[1750402236559,1.1536416,104780.0,104770.0,0.35489614]
[1750402237468,1.14356162,104780.0,104770.0,0.35489614]
[1750402237761,0.89256548,104780.0,104770.0,0.35489614]
[1750402237957,0.90265927,104780.0,104770.0,0.35489614]
[1750402239064,1.15365541,104780.0,104770.0,0.35489614]
[1750402240962,0.90265927,104780.0,104770.0,0.35489614]
[1750402241362,1.15365541,104780.0,104770.0,0.35489614]
[1750402241568,0.65166313,104780.0,104770.0,0.35489614]
[1750402241765,0.90265927,104780.0,104770.0,0.35489614]
[1750402242264,1.15365541,104780.0,104770.0,0.35489614]
[1750402244068,0.65166313,104780.0,104770.0,0.35489614]
[1750402244269,1.15365541,104780.0,104770.0,0.35489614]
[1750402244968,0.97900915,104780.0,104770.0,0.35489614]
[1750402245168,0.90265927,104780.0,104770.0,0.35489614]
[1750402245372,0.89256548,104780.0,104770.0,0.35489614]
[1750402245869,1.14356162,104780.0,104770.0,0.35489614]
[1750402246573,1.2199115,104780.0,104770.0,0.35489614]
[1750402246869,1.15376685,104780.0,104770.0,0.35489614]
[1750402248173,1.15376685,104780.0,104770.0,0.1039]
[1750402248774,1.15376685,104780.0,104770.0,0.35489614]
[1750402248981,1.15376685,104780.0,104770.0,0.1039]
[1750402251875,1.23011673,104780.0,104770.0,0.1039]
[1750402252789,0.97912059,104780.0,104770.0,0.1039]
[1750402253084,0.90277071,104780.0,104770.0,0.1039]
[1750402253886,1.15376685,104780.0,104770.0,0.1039]
[1750402254380,1.15376685,104780.0,104770.0,0.35489614]
[1750402254579,1.23011673,104780.0,104770.0,0.1039]
[1750402255284,1.26401673,104780.0,104770.0,0.0704]
[1750402255485,1.29371673,104780.0,104770.0,0.0704]
[1750402256089,1.29371673,104780.0,104770.0,0.1037]
[1750402256483,1.29371673,104780.0,104770.0,0.0704]
[1750402256791,1.29371673,104780.0,104770.0,0.0373]
[1750402256978,1.31971673,104780.0,104770.0,0.004]
[1750402257285,1.39683462,104780.0,104770.0,0.004]
[1750402257581,1.32048474,104780.0,104770.0,0.004]
[1750402258174,1.32148474,104780.0,104770.0,0.002]
[1750402258387,0.1908772,104770.0,104760.0,0.0991]
[1750402258681,1.46919951,104770.0,104760.0,0.0991]
[1750402260087,1.46919951,104770.0,104760.0,0.0658]
[1750402260480,1.50119951,104770.0,104760.0,0.0658]
[1750402265986,1.80649565,104770.0,104760.0,0.0658]
[1750402266192,1.55549951,104770.0,104760.0,0.0658]
[1750402266394,1.80649565,104770.0,104760.0,0.0658]